Cogmind - Beta 14 @@@ ROGUE MODE // 2024.09.17 @ 01:44:51 Player: Duduxx Result: Destroyed by C-17 Slicer with Blade Saw Performance ------------- Evolutions (2) 1000 Regions Visited (3) 600 Robots Destroyed (60) 300 Value Destroyed (1660) 1660 Prototype IDs (3) 60 Alien Tech Used (0) 0 Bonus (116) 116 TOTAL SCORE: 3736 Bonus ------- High Alert Combat Kills 116 Cogmind --------- Core Integrity 0/550 Matter 16/300 Energy 70/100 System Corruption 3% Temperature Cool (0) Movement Core (50) Location -8/Materials Parts ------- > --- POWER (1) -------- (None) > --- PROPULSION (4) --- (None) > --- UTILITY (4) ------ (None) > --- WEAPON (2) ------- (None) > --- INVENTORY (5) ---- Sensor Array Improved Terrain Scanner Missile Launcher Datajack Peak State ------------ > --- POWER ------------ Heavy Ion Engine > --- PROPULSION ------- Aluminum Leg Aluminum Leg Carbon-fiber Leg VTOL Module > --- UTILITY ---------- Medium Storage Unit Advanced Weight Redist. System Improved Targeting Computer Advanced Targeting Computer > --- WEAPON ----------- Heavy Assault Rifle Assault Cannon > --- INVENTORY -------- Light Deuterium Engine Light Nuclear Core Sensor Array Improved Signal Interpreter Improved Terrain Scanner Transport Network Coupler Hacking Suite Rocket Launcher Rocket Launcher Datajack [Rating: 26] Favorites ----------- Power Ion Engine Engine Ion Engine Power Core Light Nuclear Core Propulsion Light Treads Treads Light Treads Leg Aluminum Leg Flight Unit Flight Unit Utility Improved Targeting Computer Device Advanced Weight Redist. System Storage Medium Storage Unit Processor Improved Targeting Computer Hackware Hacking Suite Weapon Assault Rifle Energy Gun Beam Rifle Energy Cannon Particle Cannon Ballistic Gun Assault Rifle Ballistic Cannon Assault Cannon Launcher Rocket Launcher Slashing Weapon Mining Claw Special Melee Weapon Datajack Build | -11 -10 -9 -8 ------- Run | Yrd Mat Mat Mat Slots Evolved 4 | . . 2 2 Power . | . . . . Propulsion 2 | . . . 2 Utility 2 | . . 2 . Weapon . | . . . . Parts Attached 67 | 6 9 17 35 Power 10 | 1 1 2 6 Engine 7 | 1 1 2 3 Core 3 | . . . 3 Reactor . | . . . . Propulsion 21 | 2 . 4 15 Treads 6 | 2 . 4 . Leg 6 | . . . 6 Wheel . | . . . . Hover . | . . . . Flight 9 | . . . 9 Utility 10 | 1 3 3 3 Device 2 | . 1 . 1 Storage 3 | 1 2 . . Processor 4 | . . 3 1 Hackware 1 | . . . 1 Protection . | . . . . Artifact . | . . . . Weapon 26 | 2 5 8 11 Energy Gun 7 | 1 1 4 1 Energy Cannon 3 | . . 1 2 Ballistic Gun 8 | 1 3 1 3 Ballistic Cannon 1 | . . . 1 Launcher 5 | . . 1 4 Special Weapon . | . . . . Impact Weapon . | . . . . Slashing Weapon 1 | . 1 . . Piercing Weapon . | . . . . Special Melee Weapon 1 | . . 1 . Unidentified Prototypes 1 | . . . 1 Parts Lost 17 | . . 4 13 Power 1 | . . 1 . Propulsion 9 | . . . 9 Utility 2 | . . 1 1 Weapon 5 | . . 2 3 Highest Loss Streak 5 | . . 2 5 To Critical Strikes . | . . . . Average Slot Usage (%) 94 | . 94 99 88 Engine 9 | . 14 11 5 Core 1 | . . . 3 Treads 14 | . 28 22 . Leg 4 | . . . 10 Flight 8 | . . . 21 Device 5 | . 9 1 7 Storage 10 | . 13 11 8 Processor 18 | . . 31 16 Energy Gun 2 | . 1 5 . Energy Cannon 1 | . . 1 3 Ballistic Gun 13 | . 25 13 4 Ballistic Cannon 1 | . . . 3 Peak Build Rating 26 | 6 10 16 26 Average Rating 14 | 3 8 13 20 On Entrance 8 | . 6 10 16 Naked Turns 18 | . . . 18 Heaviest Build 26 | 13 20 24 26 Greatest Support 54 | 40 40 43 54 Greatest Overweight (x) 1 | . . . 1 Average Overweight (x) . | . . . . Largest Inventory Capacity 10 | 8 10 10 10 Average Capacity 9 | 6 9 10 9 Most Carried 10 | 3 10 10 10 Average Carried 7 | 1 5 9 8 Final Capacity 10 | 8 10 10 5 Final Carried 10 | 3 9 10 4 Class Distribution -------------------- 52% | Mutant 36% | Scavenger-Mutant 8% | Scavenger-Sprinter 3% | Sprinter Dominant Class ---------------- Mutant | -10/Materials Mutant | -9/Materials Scavenger-Mutant | -8/Materials Resources | -11 -10 -9 -8 ----------- Run | Yrd Mat Mat Mat Matter Collected 1321 | 153 267 402 499 Remotely . | . . . . Salvage Created 1713 | . 267 677 769 Parts 120 | . 14 50 56 Haulers Intercepted . | . . . . Recyclers Shooed 5 | . . 2 3 Parts Field Recycled . | . . . . Retrieved Matter . | . . . . Parts Self-Destructed . | . . . . Prevented . | . . . . Kills | -11 -10 -9 -8 ------- Run | Yrd Mat Mat Mat Combat Hostiles Destroyed 46 | . 5 17 24 Guns 22 | . 5 12 5 Cannons 14 | . . 2 12 AOE 10 | . . 3 7 Classes Destroyed 8 | . 2 4 2 Builder 4 | . . 3 1 Recycler 2 | . . 1 1 Operator 1 | . . . 1 Watcher 7 | . 2 1 4 Swarmer 16 | . . 7 9 Grunt 22 | . 5 7 10 Sentry 7 | . . 3 4 Hunter 1 | . . . 1 Best Kill Streak 12 | . 3 5 12 Combat Bots Only 10 | . 2 4 10 Max Kills in Single Turn 4 | . 2 4 4 Gunslinging 1 | . 1 . . Exploded 4 | . . 3 4 Melee . | . . . . Uniques/NPCs Destroyed . | . . . . Combat | -11 -10 -9 -8 -------- Run | Yrd Mat Mat Mat Hostile Shots Fired 321 | . 50 104 167 Missed 105 | . 19 29 57 Damage Taken 3000 | . 410 766 1824 Core 771 | . 118 89 564 Absorbed by Shields . | . . . . Core Remaining (%) 76 | 100 52 77 . Volleys Fired 163 | . 33 45 85 Largest 2 | . 2 2 2 Hottest 128 | . 40 124 128 Shots Fired 277 | . 66 89 122 Gun 182 | . 66 81 35 Cannon 78 | . . 6 72 Launcher 17 | . . 2 15 Special . | . . . . Kinetic 214 | . 66 65 83 Thermal 46 | . . 22 24 Explosive 12 | . . 2 10 Electromagnetic 5 | . . . 5 Robot Hit Streak 14 | . 6 12 14 Robot Miss Streak 5 | . 2 5 2 Penetration Max . | . . . . Secondary Targets 5 | . 2 3 . Max Gunslinging Chain 1 | . 1 1 . Shots Hit Robots 178 | . 42 55 81 Core Hits 102 | . 18 31 53 Critical Kills . | . . . . Critical Parts Destroyed . | . . . . Critical Strikes 2 | . . . 2 Blast 2 | . . . 2 Melee Attacks 1 | . . 1 . Impact . | . . . . Slashing . | . . . . Piercing . | . . . . Sneak Attacks . | . . . . Combat Hostiles . | . . . . Follow-up Attacks . | . . . . Damage Inflicted 4142 | . 403 1158 2581 Guns 1499 | . 403 718 378 Cannons 1359 | . . 101 1258 Explosions 1278 | . . 337 941 Melee . | . . . . Ramming 6 | . . 2 4 Kinetic 2177 | . 403 575 1199 Thermal 681 | . . 244 437 Explosive 1178 | . . 337 841 Electromagnetic 100 | . . . 100 Impact . | . . . . Slashing . | . . . . Piercing . | . . . . Highest Corruption 3 | . . . 3 Average Corruption 1 | . . . 1 Corruption Purged . | . . . . Corruption Blocked . | . . . . Effects 10 | . . . 10 Message Errors 3 | . . . 3 Matter Fused 2 | . . . 2 Heat Flow Errors 2 | . . . 2 Energy Discharges 1 | . . . 1 Data Loss (major) 1 | . . . 1 Misfires 1 | . . . 1 Overload Shots . | . . . . Overflow Damage 89 | . . . 89 Projectiles 80 | . . . 80 Explosions 9 | . . . 9 Melee . | . . . . Knockbacks 6 | . . . 6 Impact . | . . . . Kinetic 6 | . . . 6 Secondary . | . . . . Self-Inflicted Damage 117 | . . 27 90 Shots 5 | . . 1 4 Rammed 2 | . . 1 1 Targets Rammed 2 | . . 1 1 Kicked . | . . . . Crushed . | . . . . Highest Temperature 377 | . 30 135 377 Average Temperature 76 | . 12 40 94 Received Heat Transfer 903 | . 222 204 477 Effects 1 | . . . 1 Short Circuit 1 | . . . 1 Siege Activations . | . . . . Robots Corrupted . | . . . . Combat Hostiles . | . . . . Parts Fried . | . . . . Impact Corruptions . | . . . . Robots Melted . | . . . . Combat Hostiles . | . . . . Parts Melted 3 | . . 3 . Heat Transferred 1284 | . . 544 740 Parts Sabotaged . | . . . . Parts Stolen . | . . . . Parts Stripped . | . . . . Power Chain Reactions . | . . . . Alert | -11 -10 -9 -8 ------- Run | Yrd Mat Mat Mat Peak Influence 731 | . 194 329 731 Initial 138 | . . 4 138 Average 244 | . 79 191 422 Maximum Alert Level 3 | . . 1 3 Low Security (%) 56 | 100 100 51 29 Level 1 22 | . . 48 14 Level 2 16 | . . . 44 Level 3 4 | . . . 11 Level 4 . | . . . . Level 5 . | . . . . High Security . | . . . . Max Security . | . . . . Squads Dispatched 12 | . 2 4 6 Investigation 4 | . 1 2 1 Extermination . | . . . . Reinforcement 8 | . 1 2 5 Assault . | . . . . Garrison . | . . . . Intercept . | . . . . Searches Triggered . | . . . . Construction Impeded 1 | . . . 1 Haulers Reinforced . | . . . . Active Scanning Responses . | . . . . Cargo Convoy Interrupts . | . . . . Stealth | -11 -10 -9 -8 --------- Run | Yrd Mat Mat Mat Distress Signals 5 | . 1 . 4 Communications Jammed . | . . . . Distress Signals . | . . . . Times Spotted 69 | . 8 20 41 Peak Tracking Total 7 | . 3 4 7 Tactical Retreats 3 | . . . 3 Traps | -11 -10 -9 -8 ------- Run | Yrd Mat Mat Mat Traps Triggered 1 | . . 1 . Indirectly . | . . . . Trap Hack Attempts . | . . . . Triggered . | . . . . Disarmed . | . . . . Reprogrammed . | . . . . Reused . | . . . . Traps Extracted . | . . . . Installed . | . . . . Triggered . | . . . . Machines | -11 -10 -9 -8 ---------- Run | Yrd Mat Mat Mat Machines Disabled 4 | . . . 4 Max in Single Turn 1 | . . . 1 Machines Repaired . | . . . . Machines Dismantled . | . . . . Machines Sabotaged . | . . . . Overloaded Fab Kills . | . . . . Hacking | -11 -10 -9 -8 --------- Run | Yrd Mat Mat Mat Machines Accessed 12 | . 3 4 5 Terminals 9 | . 3 3 3 Fabricators . | . . . . Repair Stations . | . . . . Recycling Units 1 | . . . 1 Scanalyzers 2 | . . 1 1 Garrison Access . | . . . . Total Hacks 33 | . 4 15 14 Successful 21 | . 2 8 11 Failed 12 | . 2 7 3 Catastrophic 4 | . 1 2 1 Database Lockouts . | . . . . Manual 4 | . 1 3 . Terminals 26 | . 4 13 9 Fabricators . | . . . . Repair Stations . | . . . . Recycling Units 1 | . . . 1 Scanalyzers 6 | . . 2 4 Garrison Access . | . . . . Terminal Hacks 14 | . 2 6 6 Record 5 | . 1 2 2 Prototype ID Bank 1 | . . 1 . Alert Level 4 | . . 3 1 Locate Traps 1 | . . . 1 Dispatch Records 1 | . . . 1 Surveillance Status 1 | . . . 1 Hauler Manifests 1 | . 1 . . Fabricator Hacks . | . . . . Repair Station Hacks . | . . . . Recycling Unit Hacks 1 | . . . 1 Report Inventory 1 | . . . 1 Scanalyzer 6 | . . 2 4 Insert Component 3 | . . 1 2 Analyze 3 | . . 1 2 Garrison Access Hacks . | . . . . Unauthorized Hacks . | . . . . Terminals . | . . . . Fabricators . | . . . . Repair Stations . | . . . . Recycling Units . | . . . . Scanalyzers . | . . . . Garrison Access . | . . . . Data Cores Recovered . | . . . . Used . | . . . . Hacking Detections 9 | . 2 4 3 Full Trace Events 3 | . 1 1 1 Feedback Events 1 | . . . 1 Corruption 1 | . . . 1 Feedback Blocked . | . . . . Robot Schematics Acquired . | . . . . Robots Built . | . . . . Authchips . | . . . . Time . | . . . . Total Robot Build Rating . | . . . . Part Schematics Acquired 3 | . . 1 2 Parts Built . | . . . . Authchips . | . . . . Time . | . . . . Total Part Build Rating . | . . . . Parts Repaired . | . . . . Time . | . . . . Parts Recycled . | . . . . Recycled Matter . | . . . . Retrieved Matter . | . . . . Retrieved Components . | . . . . Parts Scanalyzed 3 | . . 1 2 Part Schematics Acquired 3 | . . 1 2 Parts Damaged . | . . . . Bothacking | -11 -10 -9 -8 ------------ Run | Yrd Mat Mat Mat Used RIF Installer . | . . . . Robots Hacked . | . . . . Non-combat . | . . . . Combat . | . . . . Robot Hacks Applied . | . . . . Relay Couplers Released . | . . . . Fabnet Peak Effective % . | . . . . Robots Rewired . | . . . . Allies Hacked . | . . . . Hacks Repelled . | . . . . Allies | -11 -10 -9 -8 -------- Run | Yrd Mat Mat Mat Total Allies . | . . . . Largest Group . | . . . . Highest-Rated Group . | . . . . Highest-Rated Ally . | . . . . Total Orders . | . . . . Ally Attacks . | . . . . Total Damage . | . . . . Kills . | . . . . Allies Corrupted . | . . . . Allies Melted . | . . . . Intel | -11 -10 -9 -8 ------- Run | Yrd Mat Mat Mat Robot Analysis Total . | . . . . Derelict Logs Recovered . | . . . . Drone Launches . | . . . . Drone Recoveries . | . . . . Exploration | -11 -10 -9 -8 ------------- Run | Yrd Mat Mat Mat Turns Passed 1851 | 79 412 675 685 Spaces Moved 1151 | 62 183 312 594 Core 66 | 28 . . 38 Treads 529 | 34 183 312 . Legs 138 | . . . 138 Wheels . | . . . . Hover . | . . . . Flight 418 | . . . 418 Fastest Speed 29 | 50 160 160 29 Average Speed 107 | 110 160 160 62 Slowest Speed 160 | 160 160 160 122 Overloaded Moves . | . . . . Propulsion Burnouts . | . . . . Robots Hopped 1 | . . . 1 Cave-ins Triggered . | . . . . Exploration Rate (%) 29 | 4 35 33 44 Regions Visited 3 Branch Regions . Pre-discovered Areas . | . . . . Known Exits Taken 1 | . . 1 . Unknown Exits Taken 2 | 1 1 . . Scrap Searched . | . . . . Spaces Dug . | . . . . Terrain Destroyed 95 | . . 15 80 Melee . | . . . . Projectile 8 | . . . 8 AOE 87 | . . 15 72 Terrain Rammed . | . . . . Walls Destroyed . | . . . . Machines Disabled . | . . . . Actions | -11 -10 -9 -8 --------- Run | Yrd Mat Mat Mat Total 1503 | 70 248 399 786 Wait 34 | . 1 . 33 Move 1146 | 61 182 311 592 Hop 1 | . . . 1 Pick Up 36 | 3 11 10 12 Fast Attach 31 | 6 3 6 16 Attach 16 | . 2 3 11 Detach 10 | . 3 1 6 Swap 20 | . 4 8 8 Drop 43 | . 9 13 21 Fire 163 | . 33 45 85 Melee 1 | . . 1 . Ram 1 | . . . 1 Kick . | . . . . Crush 1 | . . 1 . Escape Stasis . | . . . . Rewire . | . . . . Trap . | . . . . Miscellaneous . | . . . . Route ------- -11/Scrapyard -10/Materials (discovered 3 exits: *Mat / [*Min x2]) -9/Materials (discovered 2 exits: *Mat / [*Min]) -8/Materials (discovered 1 exit: [*Fac]) History --------- Turn | Location | Event 5 | -11/Scrapyard | Discovered new exit (range 16) 80 | -11/Scrapyard | Entered Materials 247 | -10/Materials | Discovered new exit (range 16) 255 | -10/Materials | Discovered new exit (range 16) 306 | -10/Materials | Build established: Mutant 474 | -10/Materials | Discovered new exit (range 10) 492 | -10/Materials | Entered another Materials area 492 | -9/Materials | Evolved 2 slots: Utility x2 1038 | -9/Materials | Discovered new exit (range 12) 1151 | -9/Materials | Discovered new exit (range 10) 1165 | -9/Materials | Identified exit to Materials 1167 | -9/Materials | Entered another Materials area 1167 | -8/Materials | Evolved 2 slots: Propulsion x2 1232 | -8/Materials | Build established: Scavenger-Mutant 1426 | -8/Materials | Lost 4 parts (3n1w) 1499 | -8/Materials | Destroyed 10 combat bots 1568 | -8/Materials | Discovered new exit (range 10) 1809 | -8/Materials | Core integrity fell below 50% 1825 | -8/Materials | Released all parts (7) 1843 | -8/Materials | Core integrity fell below 20% 1852 | -8/Materials | Destroyed by C-17 Slicer with Blade Saw Last Messages --------------- 01825_ Released Hacking Suite. 01825_ Released Adv. Targeting Computer. 01825_ Released Med. Storage Unit. 01825_ Released Adv. Weight Redist. System. 01825_ Released Shock Bomb Launcher. 01825_ Released Lgt. Nuclear Core. 01827_ Knocked back. 01827_ R-06 Scavenger destroyed. 01829_ Acquired Particle Gun. 01831_ R-06 Scavenger collects Lgt. Ion Engine. 01832_ The unstable cave ceiling collapses. 01833_ O-16 Technician knocked back. 01833_ Acquired VSS Leg. 01834_ VSS Leg destroyed. 01836_ R-06 Scavenger collects Tractor Beam. 01837_ Lgt. Deuterium Engine severed. 01838_ Particle Gun severed. 01842_ R-06 Scavenger collects Flight Unit. 01842_ R-06 Scavenger collects Hover Unit. 01844_ Slug penetrates Wall. Map ----- +----------------------------------------------------+ | | | | | | | | | | | | | | | | | | | | | | | ?????????????????????????????????????????????????? | | ???????????????????###########??????????????###### | | ???????????????????# ! #??????????????# | | ???????????????????# #??????????????# ! ! | | ???????????????????# """ """=#??????????????# | | ???????????????????# """ """ #??????????????# | | ???????????????????# """ """ #??????????????# * | | ???????????????????# #??????????????# [ | | #??????????????????# [#??????????????# | | #####?????????????# #??????????###?# | | ?????????????#####+################"#### | | ? < ???????########## ^ * | | ?? ???????# """ !# c % ! | | ??# ???????# "Y" # c ! %T # | | ??# ##?????# + @############ | | ### ####### # #??????????# | | # # # # # ######## #??????????# | | # * # #### #??????????# ^ # | | # ! ! ###????????# = / # | | # ! [ +????????# # | | # ! [ ###????????# ^ """ ! # | | # = #* ########??????????# """ # | | ######## ## # ##?????????????????# """ " | | ???????######## #??????????????????# H # | | ??????????????# #################+## | | ###############* % | | # # [[ | | # """# * =!!% ###############+#### ### #### | | #] """# !%! #??????????????????##+#####"##?? | | # " ###"####??????????????????# #?? | | # #####?????????????????????# #?? | | # %# #########?????????????# #?? | | # + [ "#????????????# """ #?? | | # *# * #?????????????# *"" """ #?? | | # # """ #?????????????# S"" """ #?? | | # #% R" ?#?????????????# "" """ #?? | | # ## """ #?????????????# #?? | | # # "" #?????????????###########?? | | # # #?????????????????????????? | +----------------------------------------------------+ Best States ------------- Heat Dissipation 31 Energy Generation 14 Energy Capacity 280 Matter Stores 300 Matter Capacity 300 Sight Range 16 Terrain Scan Range 16 Terrain Scan Density 10 Additional Mass Support 9 Evasion (%) 64 Targeting Accuracy 14 Recoil Reduction 2 Offensive Hacking 10 Item Schematics ----------------- Rocket Launcher | -9/Materials | Scanalyzed Sensor Array | -8/Materials | Scanalyzed VTOL Module | -8/Materials | Scanalyzed Robot Schematics ------------------ None Fabricated ------------ Nothing Alien Tech Used ----------------- None Achievements -------------- Novice Programmer Challenges ------------ None Game ------ Seed ChainWeaponTorch Manual? 0 Play Time 00:49:12 Cumulative 39.6 hours Start 2024.09.17 @ 00:51:25 End 2024.09.17 @ 01:44:51 Sessions 1 Manual Loads 0 Difficulty Rogue Special Mode None Game No. 92 Rogue 92 Adventurer 0 Explorer 0 Win Type - Total 0 Types 0/0/0/0/0/0/0/0/0 Lore% 16 Gallery% 30 Achievement% 25 Wizard Run 0 Options --------- Layout 1 ASCII 0 Keyboard 1 Movement Arrows Keybinds 0 Fullscreen 1 Font 24/Smallcaps Map View 50x35 Zoom Use 0% Tactical HUD 1 Map Filters NONE Filters NONE Steam 1 RUN: 20852cb7-2744-4c67-a1e0-45be1bf7c501